Cogmind - Beta 13 @@@ ROGUE MODE // 2024.03.31 @ 14:04:53 Player: Yovador Result: Destroyed by S-10 Pest with Light Assault Rifle Performance ------------- Evolutions (0) 0 Regions Visited (1) 200 Robots Destroyed (16) 80 Value Destroyed (351) 351 Prototype IDs (0) 0 Alien Tech Used (0) 0 Bonus (0) 0 TOTAL SCORE: 631 Bonus ------- None Cogmind --------- Core Integrity 0/250 Matter 300/300 Energy 100/100 System Corruption 0% Temperature Cool (0) Movement Core (100) Ox1 Location -10/Materials Parts ------- > --- POWER (1) -------- (None) > --- PROPULSION (2) --- (None) > --- UTILITY (2) ------ Small Storage Unit Signal Interpreter > --- WEAPON (2) ------- (None) > --- INVENTORY (8) ---- Light Ion Engine Sensor Array Peak State ------------ > --- POWER ------------ Ion Engine > --- PROPULSION ------- Light Treads Light Treads > --- UTILITY ---------- Small Storage Unit Signal Interpreter > --- WEAPON ----------- Medium Laser Light Assault Rifle > --- INVENTORY -------- Light Ion Engine [Rating: 7] Favorites ----------- Power Ion Engine Engine Ion Engine Propulsion Light Treads Treads Light Treads Leg Aluminum Leg Utility Small Storage Unit Storage Small Storage Unit Processor Signal Interpreter Weapon Light Assault Rifle Energy Gun Medium Laser Ballistic Gun Light Assault Rifle Build | -11 -10 ------- Run | Yrd Mat Slots Evolved . | . . Power . | . . Propulsion . | . . Utility . | . . Weapon . | . . Parts Attached 10 | 6 4 Power 2 | 1 1 Engine 2 | 1 1 Core . | . . Reactor . | . . Propulsion 3 | 2 1 Treads 2 | 2 . Leg 1 | . 1 Wheel . | . . Hover . | . . Flight . | . . Utility 2 | 1 1 Device . | . . Storage 1 | 1 . Processor 1 | . 1 Hackware . | . . Protection . | . . Artifact . | . . Weapon 3 | 2 1 Energy Gun 2 | 1 1 Energy Cannon . | . . Ballistic Gun 1 | 1 . Ballistic Cannon . | . . Launcher . | . . Special Weapon . | . . Impact Weapon . | . . Slashing Weapon . | . . Piercing Weapon . | . . Special Melee Weapon . | . . Unidentified Prototypes . | . . Parts Lost 8 | . 8 Power 2 | . 2 Propulsion 3 | . 3 Utility . | . . Weapon 3 | . 3 Highest Loss Streak 4 | . 4 To Critical Strikes . | . . Average Slot Usage (%) 81 | . 81 Engine 11 | . 11 Treads 13 | . 13 Leg 3 | . 3 Storage 14 | . 14 Processor 12 | . 12 Energy Gun 12 | . 12 Ballistic Gun 13 | . 13 Naked Turns . | . . Heaviest Build 13 | 13 13 Greatest Support 40 | 40 40 Greatest Overweight (x) 3 | . 3 Average Overweight (x) . | . . Largest Inventory Capacity 8 | 8 8 Average Capacity 7 | 7 8 Most Carried 3 | 3 3 Average Carried 1 | 1 1 Final Capacity 8 | 8 8 Final Carried 2 | 1 2 Class Distribution -------------------- 100% | Mutant Dominant Class ---------------- Mutant | -10/Materials Resources | -11 -10 ----------- Run | Yrd Mat Matter Collected 334 | 196 138 Remotely . | . . Salvage Created 529 | . 529 Parts 37 | . 37 Haulers Intercepted . | . . Recyclers Shooed 2 | . 2 Parts Field Recycled . | . . Retrieved Matter . | . . Parts Self-Destructed . | . . Prevented . | . . Kills | -11 -10 ------- Run | Yrd Mat Combat Hostiles Destroyed 12 | . 12 Guns 12 | . 12 Classes Destroyed 5 | . 5 Worker 1 | . 1 Recycler 1 | . 1 Watcher 2 | . 2 Swarmer 4 | . 4 Grunt 8 | . 8 Best Kill Streak 4 | . 4 Combat Bots Only 4 | . 4 Max Kills in Single Turn 2 | . 2 Gunslinging 1 | . 1 Exploded . | . . Melee . | . . Uniques/NPCs Destroyed . | . . Combat | -11 -10 -------- Run | Yrd Mat Hostile Shots Fired 153 | . 153 Missed 49 | . 49 Damage Taken 1003 | . 1003 Core 250 | . 250 Absorbed by Shields . | . . Core Remaining (%) 100 | 100 . Volleys Fired 70 | . 70 Largest 2 | . 2 Hottest 70 | . 70 Shots Fired 112 | . 112 Gun 112 | . 112 Cannon . | . . Launcher . | . . Special . | . . Kinetic 62 | . 62 Thermal 50 | . 50 Explosive . | . . Electromagnetic . | . . Robot Hit Streak 8 | . 8 Robot Miss Streak 4 | . 4 Penetration Max . | . . Secondary Targets 3 | . 3 Max Gunslinging Chain 1 | . 1 Shots Hit Robots 58 | . 58 Core Hits 29 | . 29 Critical Kills 1 | . 1 Critical Parts Destroyed 1 | . 1 Critical Strikes 5 | . 5 Burn 3 | . 3 Destroy 2 | . 2 Melee Attacks . | . . Impact . | . . Slashing . | . . Piercing . | . . Sneak Attacks . | . . Combat Hostiles . | . . Follow-up Attacks . | . . Damage Inflicted 640 | . 640 Guns 640 | . 640 Cannons . | . . Explosions . | . . Melee . | . . Ramming . | . . Kinetic 288 | . 288 Thermal 352 | . 352 Explosive . | . . Electromagnetic . | . . Impact . | . . Slashing . | . . Piercing . | . . Highest Corruption . | . . Average Corruption . | . . Corruption Purged . | . . Corruption Blocked . | . . Overload Shots . | . . Overflow Damage . | . . Projectiles . | . . Explosions . | . . Melee . | . . Knockbacks . | . . Impact . | . . Kinetic . | . . Secondary . | . . Self-Inflicted Damage . | . . Shots . | . . Rammed . | . . Targets Rammed . | . . Kicked . | . . Crushed . | . . Highest Temperature 312 | . 312 Average Temperature 90 | . 90 Received Heat Transfer 294 | . 294 Siege Activations . | . . Robots Corrupted . | . . Combat Hostiles . | . . Parts Fried . | . . Impact Corruptions . | . . Robots Melted . | . . Combat Hostiles . | . . Parts Melted 2 | . 2 Heat Transferred 1199 | . 1199 Parts Sabotaged . | . . Parts Stolen . | . . Parts Stripped . | . . Power Chain Reactions . | . . Alert | -11 -10 ------- Run | Yrd Mat Peak Influence 335 | . 335 Initial . | . . Average 114 | . 136 Maximum Alert Level 1 | . 1 Low Security (%) 82 | 100 79 Level 1 17 | . 20 Level 2 . | . . Level 3 . | . . Level 4 . | . . Level 5 . | . . High Security . | . . Max Security . | . . Squads Dispatched 3 | . 3 Investigation 2 | . 2 Extermination . | . . Reinforcement 1 | . 1 Assault . | . . Garrison . | . . Intercept . | . . Searches Triggered . | . . Construction Impeded . | . . Haulers Reinforced . | . . Active Scanning Responses . | . . Cargo Convoy Interrupts . | . . Stealth | -11 -10 --------- Run | Yrd Mat Distress Signals . | . . Communications Jammed . | . . Distress Signals . | . . Times Spotted 23 | . 23 Peak Tracking Total 7 | . 7 Tactical Retreats 1 | . 1 Traps | -11 -10 ------- Run | Yrd Mat Traps Triggered 2 | . 2 Indirectly . | . . Trap Hack Attempts . | . . Triggered . | . . Disarmed . | . . Reprogrammed . | . . Reused . | . . Traps Extracted . | . . Installed . | . . Triggered . | . . Machines | -11 -10 ---------- Run | Yrd Mat Machines Disabled . | . . Max in Single Turn . | . . Machines Repaired . | . . Machines Dismantled . | . . Machines Sabotaged . | . . Overloaded Fab Kills . | . . Hacking | -11 -10 --------- Run | Yrd Mat Machines Accessed 1 | . 1 Terminals . | . . Fabricators . | . . Repair Stations . | . . Recycling Units 1 | . 1 Scanalyzers . | . . Garrison Access . | . . Total Hacks 5 | . 5 Successful 1 | . 1 Failed 4 | . 4 Catastrophic . | . . Database Lockouts . | . . Manual . | . . Terminals . | . . Fabricators . | . . Repair Stations . | . . Recycling Units 5 | . 5 Scanalyzers . | . . Garrison Access . | . . Terminal Hacks . | . . Fabricator Hacks . | . . Repair Station Hacks . | . . Recycling Unit Hacks 1 | . 1 Report Inventory 1 | . 1 Scanalyzer . | . . Garrison Access Hacks . | . . Unauthorized Hacks . | . . Terminals . | . . Fabricators . | . . Repair Stations . | . . Recycling Units . | . . Scanalyzers . | . . Garrison Access . | . . Data Cores Recovered . | . . Used . | . . Hacking Detections 1 | . 1 Full Trace Events 1 | . 1 Feedback Events . | . . Feedback Blocked . | . . Robot Schematics Acquired . | . . Robots Built . | . . Authchips . | . . Time . | . . Total Robot Build Rating . | . . Part Schematics Acquired . | . . Parts Built . | . . Authchips . | . . Time . | . . Total Part Build Rating . | . . Parts Repaired . | . . Time . | . . Parts Recycled . | . . Recycled Matter . | . . Retrieved Matter . | . . Retrieved Components . | . . Parts Scanalyzed . | . . Part Schematics Acquired . | . . Parts Damaged . | . . Bothacking | -11 -10 ------------ Run | Yrd Mat Used RIF Installer . | . . Robots Hacked . | . . Non-combat . | . . Combat . | . . Robot Hacks Applied . | . . Relay Couplers Released . | . . Fabnet Peak Effective % . | . . Robots Rewired . | . . Allies Hacked . | . . Hacks Repelled . | . . Allies | -11 -10 -------- Run | Yrd Mat Total Allies . | . . Largest Group . | . . Highest-Rated Group . | . . Highest-Rated Ally . | . . Total Orders . | . . Ally Attacks . | . . Total Damage . | . . Kills . | . . Allies Corrupted . | . . Allies Melted . | . . Intel | -11 -10 ------- Run | Yrd Mat Robot Analysis Total . | . . Derelict Logs Recovered . | . . Drone Launches . | . . Drone Recoveries . | . . Exploration | -11 -10 ------------- Run | Yrd Mat Turns Passed 765 | 125 640 Spaces Moved 384 | 75 309 Core 50 | 6 44 Treads 212 | 69 143 Legs 122 | . 122 Wheels . | . . Hover . | . . Flight . | . . Fastest Speed 50 | 50 100 Average Speed 145 | 151 144 Slowest Speed 200 | 160 200 Overloaded Moves . | . . Propulsion Burnouts . | . . Robots Hopped . | . . Cave-ins Triggered . | . . Exploration Rate (%) 22 | 5 40 Regions Visited 1 Branch Regions . Pre-discovered Areas . | . . Known Exits Taken . | . . Unknown Exits Taken 1 | 1 . Scrap Searched . | . . Spaces Dug . | . . Terrain Destroyed . | . . Melee . | . . Projectile . | . . AOE . | . . Terrain Rammed . | . . Walls Destroyed . | . . Machines Disabled . | . . Actions | -11 -10 --------- Run | Yrd Mat Total 490 | 87 403 Wait 15 | . 15 Move 383 | 74 309 Hop . | . . Pick Up 12 | 7 5 Fast Attach . | . . Attach 10 | 6 4 Detach . | . . Swap . | . . Drop . | . . Fire 70 | . 70 Melee . | . . Ram . | . . Kick . | . . Crush . | . . Escape Stasis . | . . Rewire . | . . Trap . | . . Miscellaneous . | . . Route ------- -11/Scrapyard -10/Materials (discovered 1 exit: *Mat) History --------- Turn | Location | Event 39 | -11/Scrapyard | Discovered new exit (range 15) 126 | -11/Scrapyard | Entered Materials 318 | -10/Materials | Build established: Mutant 487 | -10/Materials | Core integrity fell below 50% 498 | -10/Materials | Lost 3 parts (1p1n1w) 649 | -10/Materials | Discovered new exit (range 14) 666 | -10/Materials | Identified exit to Materials 755 | -10/Materials | Core integrity fell below 20% 766 | -10/Materials | Destroyed by S-10 Pest with Light Assault Rifle Last Messages --------------- Acquired 1 matter. K-01 Serf collects debris. EXIT=FOUND Triggered EMP Trap. A bubble of electromagnetic force engulfs the area. EMP Trap short circuited. A bubble of electromagnetic force engulfs the area. EMP Trap short circuited. A bubble of electromagnetic force engulfs the area. EXIT=IDENTIFIED: MATERIALS U-05 Engineer lays Concrete. T-07 Excavator is excavating. U-05 Engineer builds a Wall. Lgt. Assault Rifle destroyed. Lgt. Ion Engine destroyed. Aluminum Leg destroyed. Sml. Laser destroyed. Map ----- +----------------------------------------------------+ | ?????????????????????# "Y" # #"" | | ?????????????????????# """ # #"R | | ?????????????????????# # #"" | | ????????????????????########### # | | ????????????????????# # ### | | ????????????????????# + #?? | | ????????????????????# # ### | | ????????????????????# #%%%%%% | | ????????????????????# # %%### | | ????????????????????# # #?? | | ????????????????????# # #?? | | ????????????????????# # #?? | | ????????????????############### #?? | | ????????????????# """ """ # #?? | | ????????????????# """"""""" # #?? | | ????????????????# """"" " # #?? | | ????????????????# # #?? | | ?????????+??????# # #?? | | ?????????# ?????# # #?? | | ?????????# ################+### #?? | | ?????????# #?? | | ?????????+ #?? | | ?????????# s #?? | | ?????????####s###### #### ##### #?? | | ?????????# s ## #?# ???# #?? | | ?????????# @ ## #?## ??# #?? | | ?????????# ## #??#####?# #?? | | ?????????# ## #????????# #?? | | ?????????########### #????????# #?? | | ???????????????????# #????????# #?? | | ???????????????????# #????????# ### | | ???????????????????# #????????# | | ???????????????????# #????????# | | ???????????????????# #????????# T | | ???????????????????# #????????# | | ??????????????????? ????????# | | ??????????????????? ????????## | | ??????????????????? T ?????????# | | ??????????????????? ? ?????????# | | ?????????????????????????????????# ^ | | ?????????????????????????????????# ^ | | ?????????????????????????????????# | | ?????????????????????????????????# | | ?????????????????????????????????# | | ?????????????????????????????????# < | | ?????????????????????????????????# | | ?????????????????????????????????#### | | ????????????????????????????????????? | | ????????????????????????????????????? | | ????????????????????????????????????? | +----------------------------------------------------+ Best States ------------- Heat Dissipation 25 Energy Generation 10 Energy Capacity 250 Matter Stores 300 Matter Capacity 300 Sight Range 16 Terrain Scan Density 10 Evasion (%) 55 Recoil Reduction 2 Item Schematics ----------------- None Robot Schematics ------------------ None Fabricated ------------ Nothing Alien Tech Used ----------------- None Achievements -------------- None Challenges ------------ None Game ------ Seed EtherialHackingFragment Manual? 0 Play Time 00:09:57 Cumulative 1.7 hours Start 2024.03.31 @ 13:56:02 End 2024.03.31 @ 14:04:53 Sessions 1 Manual Loads 0 Difficulty Rogue Special Mode None Game No. 6 Rogue 6 Adventurer 0 Explorer 0 Win Type - Total 0 Types 0/0/0/0/0/0/0/0/0 Lore% 0 Gallery% 4 Achievement% 4 Wizard Run 0 Options --------- Layout 1 ASCII 0 Keyboard 0 Movement Mouse Keybinds 0 Fullscreen 1 Font 24/Smallcaps Map View 50x35 Zoom Use 0% Tactical HUD 0 Map Filters NONE Filters NONE Steam 1 RUN: 032808d6-2d44-4bf8-9d45-c911f254b5ee